fUST/lending_fUST_20250128
["ID","MTS","AMOUNT","RATE_DAILY","PERIOD"]
[350639748,1738013361369,-500.8246132,0.00017009,2]
[350639749,1738013361389,-500.0,0.00017009,2]
[350639750,1738013361411,-500.0,0.00017009,2]
[350639751,1738013361430,-500.0,0.00017009,2]
[350639752,1738013361451,-501.19345255,0.00017009,2]
[350639753,1738013361471,-500.0,0.00017009,2]
[350639754,1738013361496,-500.0,0.00017009,2]
[350639755,1738013361516,-500.0,0.00017009,2]
[350639756,1738013361535,-533.61086748,0.00017009,2]
[350639757,1738013361555,-500.0,0.00017009,2]
[350639758,1738013361575,-511.6,0.00017009,2]
[350639759,1738013361594,-165.10139446,0.00017009,2]
[350639760,1738013361613,-504.13357422,0.00017009,2]
[350639761,1738013361633,-500.0,0.00017009,2]
[350639762,1738013361652,-500.0,0.00017009,2]
[350639763,1738013361673,-517.42,0.00017009,2]
[350639764,1738013361692,-502.46478449,0.00017009,2]
[350639765,1738013361711,-500.0,0.00017009,2]
[350639766,1738013361734,-500.0,0.00017009,2]
[350639767,1738013361753,-502.30136159,0.00017009,2]
[350639768,1738013361772,-500.0,0.00017009,2]
[350639769,1738013361792,-500.0,0.00017009,2]
[350639770,1738013361811,-580.20555548,0.00017009,2]
[350639771,1738013361831,-500.0,0.00017009,2]
[350639772,1738013361851,-500.0,0.00017009,2]
[350639773,1738013361871,-500.0,0.00017009,2]
[350639774,1738013361890,-501.21424012,0.00017009,2]
[350639775,1738013361911,-151.12,0.00017009,2]
[350639776,1738013361931,-500.0,0.00017009,2]
[350639777,1738013361951,-500.0,0.00017009,2]
[350639778,1738013361971,-500.0,0.00017009,2]
[350639779,1738013361999,-500.0,0.00017009,2]
[350639780,1738013362018,-500.0,0.00017009,2]
[350639781,1738013362040,-500.0,0.00017009,2]
[350639782,1738013362060,-500.0,0.00017009,2]
[350639783,1738013362081,-500.0,0.00017009,2]
[350639784,1738013362102,-500.0,0.00017009,2]
[350639785,1738013362123,-502.0831813,0.00017009,2]
[350639786,1738013362143,-500.0,0.00017009,2]
[350639787,1738013362165,-500.0,0.00017009,2]
[350639788,1738013362185,-500.0,0.00017009,2]
[350639789,1738013362206,-500.0,0.00017009,2]
[350639790,1738013362229,-500.0,0.00017009,2]
[350639791,1738013362249,-500.0,0.00017009,2]
[350639792,1738013362269,-500.0,0.00017009,2]
[350639793,1738013362290,-500.0,0.00017009,2]
[350639794,1738013362311,-500.0,0.00017009,2]
[350639795,1738013362331,-500.0,0.00017009,2]
[350639796,1738013362352,-500.0,0.00017009,2]
[350639797,1738013362463,-500.0,0.00017009,2]
[350639798,1738013362486,-500.0,0.00017009,2]
[350639799,1738013362510,-500.0,0.00017009,2]
[350639800,1738013362531,-195.27902595,0.00017009,2]
[350639801,1738013362552,-500.0,0.00017009,2]
[350639802,1738013362573,-500.0,0.00017009,2]
[350639803,1738013362594,-391.26515315,0.00017009,2]
[350639804,1738013362616,-500.0,0.00017009,2]
[350639805,1738013362638,-500.0,0.00017009,2]
[350639806,1738013362660,-500.0,0.00017009,2]
[350639807,1738013362681,-500.0,0.00017009,2]
[350639808,1738013362701,-500.0,0.00017009,2]
[350639809,1738013362722,-500.0,0.00017009,2]
[350639810,1738013362746,-500.0,0.00017009,2]
[350639811,1738013362766,-500.0,0.00017009,2]
[350639812,1738013362786,-500.0,0.00017009,2]
[350639813,1738013362807,-500.0,0.00017009,2]
[350639814,1738013362827,-500.0,0.00017009,2]
[350639815,1738013362848,-500.0,0.00017009,2]
[350639816,1738013362868,-500.0,0.00017009,2]
[350639817,1738013362887,-500.0,0.00017009,2]
[350639818,1738013362911,-500.0,0.00017009,2]
[350639819,1738013362930,-500.0,0.0001701,2]
[350639820,1738013362951,-513.61708257,0.0001701,2]
[350639821,1738013362970,-225.52389638,0.0001701,2]
[350639822,1738013362996,-500.0,0.0001701,2]
[350639823,1738013363020,-500.0,0.00017123,2]
[350639824,1738013363042,-500.0,0.00017136,2]
[350639825,1738013363065,-500.0,0.00017136,2]
[350639826,1738013363090,-500.0,0.00017136,2]
[350639827,1738013363113,-500.0,0.00017136,2]
[350639828,1738013363138,-500.0,0.00017136,2]
[350639829,1738013363162,-500.0,0.00017136,2]
[350639830,1738013363185,-500.0,0.00017136,2]
[350639831,1738013363207,-500.0,0.00017136,2]
[350639832,1738013363230,-500.0,0.00017136,2]
[350639833,1738013363252,-309.37715576,0.00017136,2]
[350639834,1738013363415,-190.62284424,0.00017136,2]
[350639835,1738013363437,-5.1130662,0.00017136,2]
[350639836,1738013363465,-494.8869338,0.00017136,2]
[350639837,1738013363486,-500.0,0.00017136,2]
[350639838,1738013363507,-500.0,0.00017136,2]
[350639839,1738013363527,-500.0,0.00017136,2]
[350639840,1738013363548,-500.0,0.00017136,2]
[350639841,1738013363568,-500.0,0.00017136,2]
[350639842,1738013363588,-500.0,0.00017136,2]
[350639843,1738013363610,-500.0,0.00017136,2]
[350639844,1738013363629,-500.0,0.00017144,2]
[350639845,1738013363648,-500.0,0.00017146,2]
[350639846,1738013363667,-505.56682642,0.00017146,2]
[350639847,1738013363686,-500.0,0.00017146,2]
[350639848,1738013363705,-500.0,0.00017146,2]
[350639849,1738013363725,-202.0050081,0.00017146,2]
[350639850,1738013363746,-500.0,0.00017146,2]
[350639851,1738013363765,-500.0,0.00017146,2]
[350639852,1738013363785,-500.0,0.00017146,2]
[350639853,1738013363804,-500.0,0.00017146,2]
[350639854,1738013363822,-504.38255903,0.00017146,2]
[350639855,1738013363842,-500.0,0.00017146,2]
[350639856,1738013363862,-195.22,0.00017146,2]
[350639857,1738013363882,-481.82,0.00017146,2]
[350639858,1738013363901,-500.0,0.00017146,2]
[350639859,1738013363921,-500.0,0.00017146,2]
[350639860,1738013363942,-500.0,0.00017146,2]
[350639861,1738013363965,-500.0,0.00017146,2]
[350639862,1738013363989,-500.0,0.00017146,2]
[350639863,1738013364009,-500.0,0.00017146,2]
[350639864,1738013364032,-500.0,0.00017146,2]
[350639865,1738013364051,-500.0,0.00017146,2]
[350639866,1738013364072,-500.0,0.00017146,2]
[350639867,1738013364092,-500.0,0.00017146,2]
[350639868,1738013364111,-500.0,0.00017146,2]
[350639869,1738013364131,-500.0,0.00017146,2]
[350639870,1738013364151,-538.02141721,0.00017146,2]
[350639871,1738013364171,-500.0,0.00017146,2]
[350639872,1738013364198,500.0,0.00016862,2]
[350639873,1738013364223,500.0,0.00016999,2]
[350639874,1738013364320,581.79,0.00017136,2]
[350639875,1738013366120,-167.96583809,0.0001726,2]
[350639876,1738013370410,500.0,0.00017009,2]
[350639877,1738013372542,500.0,0.00017009,2]
[350639878,1738013373007,500.0,0.00016438,2]
[350639879,1738013377670,500.0,0.00017009,2]
[350639880,1738013379618,500.0,0.00017009,2]
[350639881,1738013381145,1064.52,0.00016862,2]
[350639882,1738013381448,1064.52,0.00016999,2]
[350639883,1738013381717,1064.52,0.00017136,2]
[350639884,1738013381748,500.0,0.00017009,2]
[350639885,1738013387351,500.0,0.00017009,2]
[350639886,1738013388563,500.0,0.00016438,2]
[350639887,1738013388847,500.0,0.00016575,2]
[350639888,1738013389161,500.0,0.00016712,2]
[350639889,1738013389298,500.6773767,0.00017009,2]
[350639890,1738013389437,500.0,0.00016849,2]
[350639891,1738013389732,500.0,0.00016986,2]
[350639892,1738013390042,500.0,0.00017123,2]
[350639893,1738013391732,500.0,0.00017009,2]
[350639894,1738013392817,119.16268951,0.00016862,2]
[350640213,1738013436823,-500.0,0.00016438,2]
[350640214,1738013436832,-500.0,0.00016438,2]
[350640215,1738013436842,-500.0,0.00016438,2]
[350640216,1738013436851,-500.0,0.00016438,2]
[350640217,1738013436860,-500.0,0.00016575,2]
[350640218,1738013436869,-500.0,0.00016575,2]
[350640219,1738013436878,-414.61066484,0.00016712,2]
[350640234,1738013438773,-85.38933516,0.00016712,2]
[350640235,1738013438784,-500.0,0.00016712,2]
[350640236,1738013438793,-500.0,0.00016849,2]
[350640237,1738013438802,-500.0,0.00016849,2]
[350640238,1738013438811,-380.83731049,0.00016862,2]
[350640239,1738013438821,-562.83,0.00016862,2]
[350640240,1738013438830,-500.0,0.00016872,2]
[350640241,1738013438839,-500.0,0.00016872,2]
[350640242,1738013438847,-576.86,0.00016872,2]
[350640243,1738013438857,-500.0,0.00016986,2]
[350640244,1738013438866,-500.0,0.00016986,2]
[350640245,1738013438875,-500.0,0.00016999,2]
[350640246,1738013438884,-151.0,0.00016999,2]
[350640247,1738013438893,-562.83,0.00016999,2]
[350640248,1738013438902,-500.0,0.00017009,2]
[350640249,1738013438911,-500.0,0.00017009,2]
[350640250,1738013438920,-500.0,0.00017009,2]
[350640251,1738013438929,-500.0,0.00017009,2]
[350640252,1738013438938,-500.0,0.00017009,2]
[350640253,1738013438947,-500.0,0.00017009,2]
[350640254,1738013438956,-500.0,0.00017009,2]
[350640255,1738013438965,-347.55844645,0.00017009,2]
[350640256,1738013438974,-500.0,0.00017123,2]
[350640257,1738013438983,-168.76,0.00017123,2]
[350640258,1738013438992,-562.83,0.00017136,2]
[350640259,1738013439001,-59.95614945,0.00017146,2]
[350640260,1738013439013,-440.04385055,0.00017146,2]
[350640261,1738013439022,-414.90791822,0.0001726,2]
[350640262,1738013439034,-500.0,0.0001726,2]
[350640263,1738013439043,-500.0,0.0001726,2]
[350640264,1738013439052,-300.0,0.00017272,2]
[350640265,1738013439061,-407.27,0.00017273,2]
[350640266,1738013439071,-233.14,0.00017273,2]
[350640267,1738013439080,-500.0,0.00017273,2]
[350640268,1738013439089,-500.0,0.00017273,2]
[350640269,1738013439099,-649.32001,0.00017273,2]
[350640270,1738013439108,-500.0,0.00017273,2]
[350640271,1738013439118,-500.0,0.00017273,2]
[350640272,1738013439127,-500.0,0.00017273,2]
[350640273,1738013439136,-507.78,0.00017273,2]
[350640274,1738013439145,-500.0,0.00017273,2]
[350640275,1738013439154,-500.0,0.00017273,2]
[350640276,1738013439163,-500.0,0.00017273,2]
[350640277,1738013439172,-500.0,0.00017273,2]
[350640278,1738013439181,-1047.00975472,0.00017273,2]
[350640279,1738013439193,-17.51024528,0.00017273,2]
[350640280,1738013439202,-562.83,0.00017273,2]
[350640281,1738013439211,-500.0,0.00017283,2]
[350640282,1738013439220,-562.47379907,0.00017283,2]
[350640283,1738013439229,-527.83828862,0.00017283,2]
[350640284,1738013439238,-500.0,0.00017283,2]
[350640285,1738013439253,-500.0,0.00017283,2]
[350640286,1738013439267,-500.0,0.00017283,2]
[350640287,1738013439278,-500.0,0.00017283,2]
[350640288,1738013439288,-500.0,0.00017283,2]
[350640289,1738013439297,-188.15,0.00017283,2]
[350640290,1738013439306,-275.79232236,0.00017283,2]
[350640291,1738013439315,-270.27752162,0.00017298,2]
[350640292,1738013439325,-110.73153676,0.00017298,2]
[350640308,1738013440538,-389.26846324,0.00017298,2]
[350640310,1738013440548,-150.75378783,0.0001732,2]
[350640311,1738013440558,-500.0,0.00017397,2]
[350640312,1738013440567,-105.4577546,0.00017397,2]
[350640313,1738013440622,-275.92646515,0.00017397,2]
[350640314,1738013440632,-500.0,0.0001741,2]
[350640315,1738013440642,-615.49,0.0001741,2]
[350640316,1738013440652,-500.0,0.0001741,2]
[350640317,1738013440661,-442.08250024,0.0001741,2]
[350640318,1738013440671,-136.65617092,0.0001741,2]
[350640319,1738013440683,-363.34382908,0.0001741,2]
[350640320,1738013440693,-589.76065484,0.0001741,2]
[350640321,1738013440702,-500.0,0.0001741,2]
[350640322,1738013440712,-500.0,0.0001741,2]
[350640323,1738013440722,-1064.52,0.0001741,2]
[350640324,1738013440732,-562.83,0.0001741,2]
[350640325,1738013440742,-500.0,0.0001742,2]
[350640326,1738013440752,-500.0,0.0001742,2]
[350640327,1738013440763,-400.78144383,0.0001742,2]
[350640328,1738013440773,-272.69,0.0001742,2]
[350640329,1738013440784,-2560.33838248,0.00017522,2]
[350640330,1738013440795,-500.0,0.00017534,2]
[350640331,1738013440804,-500.0,0.00017547,2]
[350640332,1738013440814,-574.58,0.00017547,2]
[350640333,1738013440824,-500.0,0.00017547,2]
[350640334,1738013440835,-276.15568977,0.00017547,2]
[350640335,1738013440848,-788.36431023,0.00017547,2]
[350640336,1738013440857,-562.83,0.00017547,2]
[350640337,1738013440867,-467.60490307,0.00017556,2]
[350640338,1738013440877,-500.0,0.00017557,2]
[350640339,1738013440887,-500.0,0.00017671,2]
[350640340,1738013440897,-576.34699298,0.00017684,2]
[350640341,1738013440907,-500.0,0.00017684,2]
[350640342,1738013440916,-1064.52,0.00017684,2]
[350640343,1738013440926,-562.83,0.00017684,2]
[350640344,1738013440935,-500.0,0.00017693,2]
[350640345,1738013440946,-500.0,0.00017693,2]
[350640346,1738013440955,-500.0,0.00017694,2]
[350640347,1738013440965,-500.0,0.00017808,2]
[350640348,1738013440974,-500.0,0.00017821,2]
[350640349,1738013440983,-1064.52,0.00017821,2]
[350640350,1738013440993,-562.83,0.00017821,2]
[350640351,1738013441003,-500.0,0.00017831,2]
[350640352,1738013441013,-525.85369367,0.00017945,2]
[350640353,1738013441023,-500.0,0.00017958,2]
[350640354,1738013441036,-1064.52,0.00017958,2]
[350640355,1738013441046,-562.83,0.00017958,2]
[350640356,1738013441057,-188.22,0.00018,2]
[350640357,1738013441066,-500.0,0.00018088,2]
[350640358,1738013441075,-500.0,0.00018088,2]
[350640359,1738013441085,-500.0,0.00018089,2]
[350640360,1738013441094,-500.0,0.00018089,2]
[350640361,1738013441106,-500.0,0.00018095,2]
[350640362,1738013441116,-1064.52,0.00018095,2]
[350640363,1738013441126,-562.83,0.00018095,2]
[350640364,1738013441135,-500.0,0.00018121,2]
[350640365,1738013441144,-500.0,0.00018226,2]
[350640366,1738013441154,-500.0,0.00018232,2]
[350640367,1738013441164,-1064.52,0.00018232,2]
[350640368,1738013441174,-562.83,0.00018232,2]
[350640369,1738013441183,-194.46,0.00018241,2]
[350640370,1738013441193,-500.0,0.00018241,2]
[350640371,1738013441202,-500.0,0.00018369,2]
[350640372,1738013441211,-1064.52,0.00018369,2]
[350640373,1738013441222,-562.83,0.00018369,2]
[350640374,1738013441231,-151.0,0.00018487,2]
[350640375,1738013441241,-151.0,0.00018487,2]
[350640376,1738013441250,-153.0,0.00018487,2]
[350640377,1738013441260,-153.0,0.00018487,2]
[350640378,1738013441270,-153.0,0.00018487,2]
[350640379,1738013441280,-153.0,0.00018487,2]
[350640380,1738013441290,-153.0,0.00018487,2]
[350640381,1738013441299,-153.0,0.00018487,2]
[350640382,1738013441309,-153.0,0.00018487,2]
[350640383,1738013441319,-153.0,0.00018487,2]
[350640384,1738013441328,-153.0,0.00018487,2]
[350640385,1738013441338,-153.0,0.00018487,2]
[350640386,1738013441349,-153.0,0.00018487,2]
[350640387,1738013441359,-153.0,0.00018487,2]
[350640388,1738013441369,-153.0,0.00018487,2]
[350640389,1738013441379,-153.0,0.00018488,2]
[350640390,1738013441389,-153.0,0.00018488,2]
[350640391,1738013441398,-153.0,0.00018488,2]
[350640392,1738013441408,-153.0,0.00018488,2]
[350640393,1738013441418,-153.0,0.00018488,2]
[350640394,1738013441427,-153.0,0.00018488,2]
[350640395,1738013441438,-153.0,0.00018488,2]
[350640396,1738013441449,-153.0,0.00018488,2]
[350640397,1738013441459,-153.0,0.00018488,2]
[350640398,1738013441469,-153.0,0.00018492,2]
[350640399,1738013441478,-153.0,0.00018492,2]
[350640400,1738013441604,-153.0,0.00018492,2]
[350640401,1738013441616,-153.0,0.00018492,2]
[350640402,1738013441625,-153.0,0.00018492,2]
[350640403,1738013441635,-153.0,0.00018492,2]
[350640404,1738013441644,-153.0,0.00018492,2]
[350640405,1738013441654,-153.0,0.00018492,2]
[350640406,1738013441663,-153.0,0.00018492,2]
[350640407,1738013441672,-153.0,0.00018492,2]
[350640408,1738013441681,-153.0,0.00018492,2]
[350640409,1738013441689,-153.0,0.00018492,2]
[350640410,1738013441698,-153.0,0.00018492,2]
[350640411,1738013441707,-153.0,0.00018493,2]
[350640412,1738013441716,-153.0,0.00018493,2]
[350640413,1738013441725,-153.0,0.00018493,2]
[350640414,1738013441734,-153.0,0.00018493,2]
[350640415,1738013441743,-153.0,0.00018493,2]
[350640416,1738013441751,-153.0,0.00018493,2]
[350640417,1738013441760,-153.0,0.00018493,2]
[350640418,1738013441769,-153.0,0.00018493,2]
[350640419,1738013441779,-153.0,0.00018502,2]
[350640420,1738013441789,-153.0,0.00018502,2]
[350640421,1738013441798,-153.0,0.00018502,2]
[350640422,1738013441807,-153.0,0.00018502,2]
[350640423,1738013441816,-153.0,0.00018502,2]
[350640424,1738013441826,-153.0,0.00018502,2]
[350640425,1738013441836,-153.0,0.00018502,2]
[350640426,1738013441845,-153.0,0.00018502,2]
[350640427,1738013441855,-153.0,0.00018502,2]
[350640428,1738013441864,-153.0,0.00018502,2]
[350640429,1738013441874,-153.0,0.00018502,2]
[350640430,1738013441883,-151.0,0.00018502,2]
[350640431,1738013441893,-151.0,0.00018502,2]
[350640432,1738013441906,-153.0,0.00018503,2]
[350640433,1738013441916,-153.0,0.00018503,2]
[350640434,1738013441925,-153.0,0.00018503,2]
[350640435,1738013441935,-153.0,0.00018503,2]
[350640436,1738013441945,-153.0,0.00018503,2]
[350640437,1738013441955,-153.0,0.00018503,2]
[350640438,1738013441964,-500.0,0.00018506,2]
[350640439,1738013441975,-1064.52,0.00018506,2]
[350640440,1738013441985,-562.83,0.00018506,2]
[350640441,1738013441995,-157.45,0.000186,2]
[350640442,1738013442004,-151.0,0.000186,2]
[350640443,1738013442015,-167.153,0.00018639,2]
[350640444,1738013442025,-500.0,0.00018643,2]
[350640445,1738013442043,-1064.52,0.00018643,2]
[350640446,1738013442054,-562.83,0.00018643,2]
[350640447,1738013442063,-500.0,0.00018652,2]
[350640448,1738013442073,-151.0,0.00018653,2]
[350640449,1738013442082,-151.0,0.00018653,2]
[350640450,1738013442092,-500.0,0.0001878,2]
[350640451,1738013442102,-1064.52,0.0001878,2]
[350640452,1738013442112,-562.83,0.0001878,2]
[350640453,1738013442122,-420.0,0.0001886,2]
[350640454,1738013442131,-500.0,0.00018908,2]
[350640455,1738013442140,-504.65,0.00018916,2]
[350640456,1738013442150,-1064.52,0.00018916,2]
[350640457,1738013442159,-562.83,0.00018916,2]
[350640458,1738013442168,-1064.52,0.00019053,2]
[350640459,1738013442177,-562.83,0.00019053,2]
[350640460,1738013442186,-161.58675782,0.0001909,2]
[350640461,1738013442196,-500.0,0.0001909,2]
[350640462,1738013442205,-500.0,0.0001909,2]
[350640463,1738013442214,-163.57309221,0.0001909,2]
[350640464,1738013442223,-358.46594895,0.0001909,2]
[350640465,1738013442233,-500.0,0.0001909,2]
[350640466,1738013442242,-571.29596006,0.0001909,2]
[350640467,1738013442252,-7795.80450204,0.00019091,2]
[350640468,1738013442262,-160.345554,0.00019178,2]
[350640469,1738013442272,-1064.52,0.0001919,2]
[350640470,1738013442285,-562.83,0.0001919,2]
[350640471,1738013442294,-1064.52,0.00019327,2]
[350640472,1738013442304,-562.83,0.00019327,2]
[350640473,1738013442313,-151.0,0.00019337,2]
[350640474,1738013442323,-151.0,0.00019337,2]
[350640475,1738013442332,-1064.52,0.00019464,2]
[350640476,1738013442342,-562.83,0.00019464,2]
[350640477,1738013442352,-1064.52,0.00019601,2]
[350640478,1738013442361,-562.83,0.00019601,2]
[350640479,1738013442371,-1064.52,0.00019738,2]
[350640480,1738013442380,-562.83,0.00019738,2]
[350640481,1738013442390,-1064.52,0.00019875,2]
[350640482,1738013442400,-562.83,0.00019875,2]
[350640483,1738013442410,-210.01894722,0.000199,2]
[350640484,1738013442420,-150.75378783,0.0001998,2]
[350640485,1738013442430,-992.68,0.0002,2]
[350640486,1738013442440,-1064.60328237,0.00020012,2]
[350640487,1738013442450,-562.95429037,0.00020012,2]
[350640488,1738013442460,-210.01894715,0.00020275,2]
[350640489,1738013442470,-514.81,0.00020547,2]
[350640490,1738013442480,-210.01894715,0.0002065,2]
[350640491,1738013442490,-210.01894715,0.00021025,2]
[350640492,1738013442500,-500.0,0.000211,2]
[350640493,1738013442509,-210.01894715,0.000214,2]
[350640494,1738013442519,-344.59,0.000215,2]
[350640495,1738013442528,-153.606,0.000216,2]
[350640496,1738013442542,-395.0,0.00021718,2]
[350640497,1738013442551,-150.0,0.00021718,2]
[350640498,1738013442561,-210.01894715,0.00021775,3]
[350640499,1738013442570,-48164.77533025,0.000219,3]
[350640500,1738013442579,-151.0,0.000219,2]
[350640501,1738013442588,-500.0,0.00021917,2]
[350640502,1738013442598,-514.81,0.00021917,4]
[350640503,1738013442608,-310.3641415,0.00021918,2]
[350640504,1738013442617,-461.0832715,0.00021918,2]
[350640505,1738013442627,-545.78577458,0.00021999,2]
[350640506,1738013442637,-9340.93996965,0.00022,3]
[350640507,1738013442646,-345.6597847,0.00022,2]
[350640508,1738013442655,-447.0462272,0.00022,2]
[350640509,1738013442665,-24511.66571604,0.00022,2]
[350640510,1738013442675,-1279.59783588,0.00022,7]
[350640511,1738013442684,-1000.0,0.00022,2]
[350640512,1738013442693,-210.01894715,0.0002215,3]
[350640513,1738013442703,-13239.98568306,0.00022489,2]
[350640514,1738013442712,-153.09,0.000225,31]
[350640515,1738013442721,-153.09,0.000225,31]
[350640516,1738013442730,-153.09,0.000225,31]
[350640517,1738013442740,-153.09,0.000225,31]
[350640518,1738013442750,-153.09,0.000225,31]
[350640519,1738013442759,-153.09,0.000225,31]
[350640520,1738013442769,-153.09,0.000225,31]
[350640521,1738013442778,-151.0,0.00022515,3]
[350640523,1738013442790,-151.0,0.00022515,3]
[350640525,1738013442799,-476.0230758,0.00022516,2]
[350640526,1738013442809,-210.01894715,0.00022525,3]
[350640527,1738013442820,-10005.19036188,0.0002256,2]
[350640529,1738013442830,-179.19250148,0.00022639,2]
[350640531,1738013442840,-150.75378783,0.00022639,2]
[350640533,1738013442851,-171.269958,0.00022646,14]
[350640535,1738013442861,-1069.0,0.00022677,17]
[350640536,1738013442871,-171.269958,0.00022696,3]
[350640537,1738013442881,-500.0,0.00022697,8]
[350640538,1738013442891,-500.0,0.00022697,8]
[350640539,1738013442903,-151.0,0.000227,6]
[350640540,1738013442912,-1059.04554295,0.00022703,18]
[350640541,1738013442922,-152.957108,0.00022731,7]
[350640542,1738013442931,-153.062453,0.00022731,7]
[350640544,1738013442941,-151.0,0.00022738,7]
[350640546,1738013442951,-151.0,0.00022738,7]
[350640547,1738013442960,-151.0,0.00022738,7]
[350640549,1738013442970,-151.0,0.00022738,7]
[350640551,1738013442979,-14573.78786583,0.00022739,5]
[350640556,1738013443026,-32352.27552738,0.00022739,5]
[350640558,1738013443039,-13110.07167118,0.00022739,5]
[350640560,1738013443048,-78196.13630699,0.00022739,61]
[350640565,1738013443062,-421.79,0.00022739,61]
[350640570,1738013443075,-312.73657476,0.00022739,61]
[350640584,1738013443125,200.000007,0.00013973,2]
[350640619,1738013443443,-334105.93153138,0.00022739,61]
[350640655,1738013447739,-500.0,0.0001909,2]
[350640656,1738013447749,-500.0,0.0001909,2]
[350640657,1738013447758,-500.0,0.0001909,2]
[350640658,1738013447767,-500.0,0.0001909,2]
[350640659,1738013447776,-413.82752026,0.0001909,2]
[350640660,1738013447787,-50303.34890969,0.00022739,61]
[350640661,1738013447852,-134426.4152072,0.00022739,61]
[350640703,1738014025669,3996.57809863,0.0001515,2]
[350640705,1738014271967,-6469.7683653,0.00015391,2]
[350640706,1738014272001,-1598.80302709,0.00015477,2]
[350640707,1738014272034,-152.5,0.00015634,2]
[350640708,1738014272066,-152.5,0.00015634,2]
[350640709,1738014330128,-300.0,0.00015642,2]
[350640710,1738014330150,-24900.0,0.00015644,2]
[350640711,1738014330172,-176.54941156,0.00016338,2]
[350640712,1738014330194,-152.5,0.00016427,2]
[350640713,1738014330218,-152.5,0.00016427,2]
[350640714,1738014330239,-152.5,0.00016427,2]
[350640715,1738014330258,-152.5,0.00016427,2]
[350640716,1738014330279,-152.5,0.00016427,2]
[350640717,1738014330298,-291.82821101,0.00016428,2]
[350640718,1738014330321,-152.5,0.00016428,2]
[350640719,1738014330341,-248.57354115,0.00016437,2]
[350640720,1738014330362,-500.0,0.00016437,2]
[350640721,1738014330383,-500.0,0.00016437,2]
[350640722,1738014330411,-500.0,0.00016437,2]
[350640723,1738014330435,-500.0,0.00016437,2]
[350640724,1738014330462,-591.06873632,0.00016437,2]
[350640725,1738014330483,-256.6284035,0.00016437,2]
[350640726,1738014330513,-500.0,0.00016437,2]
[350640727,1738014330534,-191.66543712,0.00016437,2]
[350640728,1738014330556,-500.0,0.00016437,2]
[350640729,1738014330583,-602.9742425,0.00016437,2]
[350640730,1738014330608,-500.0,0.00016437,2]
[350640731,1738014330630,-454.2808204,0.00016437,2]
[350640732,1738014330656,-500.0,0.00016437,2]
[350640733,1738014330678,-500.0,0.00016437,2]
[350640734,1738014330706,-500.0,0.00016437,2]
[350640735,1738014330729,-500.0,0.00016437,2]
[350640736,1738014330757,-500.0,0.00016437,2]
[350640737,1738014330783,-500.0,0.00016437,2]
[350640738,1738014330806,-500.0,0.00016437,2]
[350640739,1738014330832,-500.0,0.00016437,2]
[350640740,1738014330857,-500.0,0.00016437,2]
[350640741,1738014330879,-500.0,0.00016437,2]
[350640742,1738014330904,-500.0,0.00016437,2]
[350640743,1738014330926,-500.0,0.00016437,2]